[Event "DVM U20 2019"]
[Site "Braunschweig"]
[Date "2019.12.29"]
[Round "5"]
[White "Peukert, Marc"]
[Black "Meister, Konstantin"]
[Result "1-0"]
[ECO "A06"]
[WhiteElo "1518"]
[BlackElo "1256"]
[Annotator "NA"]
[PlyCount "121"]
[EventDate "2019.12.27"]
[EventType "team-tourn"]
[EventRounds "7"]
[EventCountry "GER"]
[SourceTitle "playchess.com"]
[Source "ChessBase"]
[SourceQuality "1"]
[WhiteTeam "USV TU Dresden"]
[BlackTeam "Sges Bensheim"]
[TimeControl "40/5400+30:1800+30"]

1. Nf3 {[%emt 0:00:00]} d5 {[%emt 0:00:00]} 2. c4 {[%emt 0:00:00]} c6 {[%emt 0:00:35]} 3. d3 {[%emt 0:02:02]} dxc4 {[%emt 0:00:47]} 4. dxc4 {[%emt 0:00:48]} Qxd1+ 5. Kxd1 g6 {[%emt 0:02:39]} 6. Nc3 {[%emt 0:09:04]} Nf6 {[%emt 0:00:54]} 7. Bf4 {[%emt 0:07:10]} Bf5 {[%emt 0:03:25]} 8. Nd4 {[%emt 0:04:42]} Na6 {[%emt 0:07:16]} 9. Nxf5 {[%emt 0:10:57]} O-O-O+ {[%emt 0:02:53]} 10. Kc2 {[%emt 0:00:44]} gxf5 {[%emt 0:00:55]} 11. e3 {[%emt 0:03:43]} Nh5 {[%emt 0:01:43]} 12. Bg5 {[%emt 0:06:07]} f6 {[%emt 0:00:16]} 13. Bh4 {[%emt 0:00:40]} Nb4+ {[%emt 0:04:09]} 14. Kb3 {[%emt 0:01:00]} c5 {[%emt 0:00:11]} 15. Be2 {[%emt 0:00:30]} Ng7 {[%emt 0:01:02]} 16. a3 {[%emt 0:03:06]} Nc6 {[%emt 0:03:15]} 17. Kc2 {[%emt 0:05:13]} Ne6 {[%emt 0:02:32]} 18. Bd3 {[%emt 0:02:30]} Kb8 {[%emt 0:02:20]} 19. Rad1 {[%emt 0:04:47]} f4 {[%emt 0:12:56]} 20. exf4 {[%emt 0:09:30]} Ncd4+ {[%emt 0:01:06]} 21. Kb1 {[%emt 0:01:39]} Nxf4 {[%emt 0:00:58]} 22. Bg3 {[%emt 0:00:57]} e5 {[%emt 0:00:14]} 23. Bxf4 {[%emt 0:00:53]} exf4 {[%emt 0:00:08]} 24. Nd5 {[%emt 0:00:20]} Rd6 {[%emt 0:03:23]} 25. Nxf4 {[%emt 0:01:29]} Rg8 {[%emt 0:01:00]} 26. Bxh7 {[%emt 0:02:38]} Rg4 {[%emt 0:00:29]} 27. g3 {[%emt 0:00:46]} Bh6 {[%emt 0:00:43]} 28. Nd5 {[%emt 0:02:44]} Nc6 {[%emt 0:01:43]} 29. f4 {[%emt 0:01:58]} Na5 {[%emt 0:01:12]} 30. Rhe1 {[%emt 0:03:03]} a6 {[%emt 0:00:52]} 31. Ne3 {[%emt 0:01:19]} Rxd1+ {[%emt 0:00:37]} 32. Rxd1 {[%emt 0:00:12]} Rg7 {[%emt 0:00:17]} 33. Bf5 {[%emt 0:01:27]} Re7 {[%emt 0:00:40]} 34. Nd5 {[%emt 0:02:24]} Re2 {[%emt 0:00:33]} 35. Nxf6 {[%emt 0:04:26]} Nxc4 {[%emt 0:00:44]} 36. Bd3 {[%emt 0:00:53]} Rd2 {[%emt 0:03:29]} 37. Rxd2 {[%emt 0:00:25]} Nxd2+ {[%emt 0:00:17]} 38. Kc2 {[%emt 0:00:16]} Nf3 {[%emt 0:01:13]} 39. Nd7+ {[%emt 0:00:41]} Kc7 {[%emt 0:00:30]} 40. Nxc5 {[%emt 0:00:37]} Kc6 {[%emt 0:03:54]} 41. Be4+ {[%emt 0:31:15]} Kxc5 {[%emt 0:30:14]} 42. Bxf3 {[%emt 0:00:07]} b5 {[%emt 0:00:27]} 43. b4+ {[%emt 0:00:23]} Kb6 {[%emt 0:00:31]} 44. h4 {[%emt 0:01:04]} a5 {[%emt 0:00:04]} 45. f5 {[%emt 0:01:04]} axb4 {[%emt 0:00:19]} 46. axb4 {[%emt 0:00:07]} Bf8 {[%emt 0:01:42]} 47. Kb3 {[%emt 0:00:09]} Kc7 {[%emt 0:00:41]} 48. g4 {[%emt 0:00:19]} Kd6 {[%emt 0:00:35]} 49. g5 {[%emt 0:00:44]} Ke5 {[%emt 0:00:16]} 50. f6 {[%emt 0:00:23]} Kf5 {[%emt 0:01:28]} 51. Bc6 {[%emt 0:00:16]} Kg6 {[%emt 0:02:26]} 52. Bxb5 {[%emt 0:00:18]} Kf7 {[%emt 0:00:34]} 53. Bc4+ {[%emt 0:00:17]} Kg6 {[%emt 0:02:15]} 54. b5 {[%emt 0:00:13]} Bc5 {[%emt 0:00:12]} 55. Be6 {[%emt 0:00:22]} Bf2 {[%emt 0:01:12]} 56. f7 {[%emt 0:00:46]} Kg7 {[%emt 0:00:13]} 57. h5 {[%emt 0:00:11]} Bc5 {[%emt 0:01:15]} 58. Kc4 {[%emt 0:01:32]} Be7 {[%emt 0:00:39]} 59. b6 {[%emt 0:00:34]} Bxg5 {[%emt 0:00:51]} 60. b7 {[%emt 0:00:10]} Bf4 {[%emt 0:01:10]} 61. h6+ {normal} 1-0

[Event "DVM U20 2019"]
[Site "Braunschweig"]
[Date "2019.12.29"]
[Round "5"]
[White "van Haaren, Laurens Jan"]
[Black "Honisch, Alexander"]
[Result "1-0"]
[ECO "A46"]
[WhiteElo "1482"]
[BlackElo "1477"]
[Annotator "NA"]
[PlyCount "151"]
[EventDate "2019.12.27"]
[EventType "team-tourn"]
[EventRounds "7"]
[EventCountry "GER"]
[SourceTitle "playchess.com"]
[Source "ChessBase"]
[SourceQuality "1"]
[WhiteTeam "SK Turm Kleve"]
[BlackTeam "SK Bebenhausen"]
[TimeControl "40/5400+30:1800+30"]

1. d4 {[%emt 0:00:00]} Nf6 {[%emt 0:00:10]} 2. Nf3 {[%emt 0:00:00]} e6 {[%emt 0:00:28]} 3. g3 {[%emt 0:01:16]} d5 {[%emt 0:00:40]} 4. Bg2 {[%emt 0:00:07]} Be7 {[%emt 0:00:26]} 5. O-O {[%emt 0:03:06]} O-O {[%emt 0:00:56]} 6. b3 {[%emt 0:01:52]} Nbd7 7. Bb2 {[%emt 0:02:15]} b6 {[%emt 0:14:26]} 8. Nbd2 {[%emt 0:04:04]} Bb7 {[%emt 0:02:03]} 9. c4 {[%emt 0:01:44]} dxc4 {[%emt 0:06:34]} 10. Nxc4 {[%emt 0:02:22]} c5 {[%emt 0:02:02]} 11. e3 {[%emt 0:08:43]} Rc8 {[%emt 0:04:00]} 12. Rc1 {[%emt 0:03:57]} cxd4 {[%emt 0:03:48]} 13. Bxd4 {[%emt 0:04:08]} Nc5 {[%emt 0:02:59]} 14. Ncd2 {[%emt 0:06:52]} Nfe4 {[%emt 0:06:29]} 15. Nxe4 {[%emt 0:04:36]} Bxe4 {[%emt 0:01:27]} 16. Nd2 {[%emt 0:02:30]} Bxg2 {[%emt 0:00:43]} 17. Kxg2 {[%emt 0:00:08]} Qd5+ {[%emt 0:04:17]} 18. Kg1 {[%emt 0:05:04]} Rfd8 {[%emt 0:01:23]} 19. f4 {[%emt 0:05:38]} Ne4 {[%emt 0:03:58]} 20. Nxe4 {[%emt 0:06:32]} Qxe4 {[%emt 0:01:07]} 21. Rxc8 {[%emt 0:01:17]} Rxc8 {[%emt 0:00:41]} 22. Qf3 {[%emt 0:04:11]} Qxf3 {[%emt 0:02:00]} 23. Rxf3 {[%emt 0:00:12]} Rc1+ {[%emt 0:04:19]} 24. Rf1 {[%emt 0:00:08]} Rxf1+ {[%emt 0:01:17]} 25. Kxf1 {[%emt 0:00:21]} g6 {[%emt 0:01:16]} 26. Ke2 {[%emt 0:01:12]} Kf8 {[%emt 0:02:33]} 27. Kd3 {[%emt 0:00:08]} Ke8 {[%emt 0:01:37]} 28. Kc4 {[%emt 0:00:07]} Kd7 {[%emt 0:00:43]} 29. Kb5 {[%emt 0:01:35]} Kc7 {[%emt 0:00:19]} 30. Ka6 {[%emt 0:01:30]} Kb8 {[%emt 0:00:48]} 31. Be5+ {[%emt 0:00:11]} Ka8 {[%emt 0:00:32]} 32. a4 {[%emt 0:02:46]} Bc5 {[%emt 0:04:13]} 33. Bd4 {[%emt 0:00:24]} Bd6 {[%emt 0:01:51]} 34. Be5 {[%emt 0:02:11]} Bc5 {[%emt 0:00:18]} 35. Bd4 {[%emt 0:01:18]} Be7 {[%emt 0:08:23]} 36. a5 {[%emt 0:00:11]} bxa5 {[%emt 0:01:02]} 37. Bxa7 {[%emt 0:00:08]} Bb4 {[%emt 0:01:43]} 38. e4 {[%emt 0:01:00]} Bd2 {[%emt 0:01:07]} 39. Bb6 {[%emt 0:02:20]} f5 {[%emt 0:01:22]} 40. exf5 {[%emt 0:01:03]} exf5 {[%emt 0:00:47]} 41. Bxa5 {[%emt 0:30:07]} Be3 {[%emt 0:30:48]} 42. Bb6 {[%emt 0:00:11]} Bd2 {[%emt 0:00:53]} 43. Bc5 {[%emt 0:02:11]} g5 {[%emt 0:02:05]} 44. fxg5 {[%emt 0:01:29]} Bxg5 {[%emt 0:00:24]} 45. h4 {[%emt 0:00:04]} Bd8 {[%emt 0:01:15]} 46. Bd6 {[%emt 0:00:12]} h5 {[%emt 0:00:56]} 47. b4 {[%emt 0:00:41]} f4 {[%emt 0:01:14]} 48. b5 {[%emt 0:08:44]} fxg3 {[%emt 0:01:51]} 49. b6 {[%emt 0:00:11]} Bxb6 {[%emt 0:00:27]} 50. Kxb6 {[%emt 0:00:08]} g2 {[%emt 0:00:36]} 51. Bh2 {[%emt 0:00:11]} g1=Q+ {[%emt 0:00:34]} 52. Bxg1 {[%emt 0:00:11]} Kb8 {[%emt 0:00:08]} 53. Kc6 {[%emt 0:00:15]} Kc8 {[%emt 0:00:18]} 54. Kd6 {[%emt 0:00:08]} Kd8 {[%emt 0:00:30]} 55. Ke6 {[%emt 0:00:07]} Ke8 {[%emt 0:00:15]} 56. Kf6 {[%emt 0:00:05]} Kf8 {[%emt 0:05:04]} 57. Kg6 {[%emt 0:00:09]} Kg8 {[%emt 0:00:43]} 58. Kxh5 {[%emt 0:00:08]} Kh7 {[%emt 0:00:13]} 59. Bd4 {[%emt 0:00:26]} Kg8 {[%emt 0:00:19]} 60. Kg6 {[%emt 0:00:16]} Kf8 {[%emt 0:00:14]} 61. h5 {[%emt 0:00:16]} Kg8 {[%emt 0:00:09]} 62. h6 {[%emt 0:00:40]} Kf8 {[%emt 0:00:05]} 63. h7 {[%emt 0:00:10]} Ke7 {[%emt 0:00:07]} 64. h8=Q Kd6 65. Bc5+ {[%emt 0:01:07]} Kxc5 {[%emt 0:00:49]} 66. Qd8 {[%emt 0:00:09]} Kc4 {[%emt 0:00:08]} 67. Qd6 {[%emt 0:00:13]} Kc3 {[%emt 0:00:06]} 68. Qd5 {[%emt 0:00:16]} Kc2 {[%emt 0:00:16]} 69. Qf3 {[%emt 0:00:09]} Kd2 {[%emt 0:00:17]} 70. Kf5 {[%emt 0:00:09]} Kc2 {[%emt 0:00:14]} 71. Ke4 {[%emt 0:00:09]} Kd2 {[%emt 0:00:10]} 72. Qg3 {[%emt 0:00:29]} Kc2 {[%emt 0:00:13]} 73. Kd4 {[%emt 0:00:05]} Kd2 {[%emt 0:00:19]} 74. Qf2+ {[%emt 0:00:40]} Kd1 {[%emt 0:00:15]} 75. Kc3 {[%emt 0:00:17]} Kc1 {[%emt 0:00:07]} 76. Qc2# {[%emt 0:00:09] normal} 1-0

[Event "DVM U20 2019"]
[Site "Braunschweig"]
[Date "2019.12.29"]
[Round "5"]
[White "Sequeira, Titus"]
[Black "Celik, Cem"]
[Result "0-1"]
[ECO "D02"]
[WhiteElo "1472"]
[BlackElo "1767"]
[Annotator "NA"]
[PlyCount "58"]
[EventDate "2019.12.27"]
[EventType "team-tourn"]
[EventRounds "7"]
[EventCountry "GER"]
[SourceTitle "playchess.com"]
[Source "ChessBase"]
[SourceQuality "1"]
[WhiteTeam "SG Trier"]
[BlackTeam "SF Essen-Katernberg"]
[TimeControl "40/5400+30:1800+30"]

1. d4 {[%emt 0:00:00]} d5 {[%emt 0:00:00]} 2. Nf3 {[%emt 0:00:00]} Nf6 {[%emt 0:00:00]} 3. Bf4 {[%emt 0:00:00]} e6 {[%emt 0:01:33]} 4. e3 {[%emt 0:00:25]} Bd6 {[%emt 0:00:13]} 5. Bxd6 {[%emt 0:00:44]} cxd6 {[%emt 0:00:10]} 6. Nbd2 {[%emt 0:00:52]} O-O {[%emt 0:01:51]} 7. c3 {[%emt 0:00:14]} Nc6 {[%emt 0:00:16]} 8. Bd3 {[%emt 0:00:43]} Qe7 {[%emt 0:03:26]} 9. O-O {[%emt 0:04:15]} e5 {[%emt 0:03:00]} 10. e4 {[%emt 0:03:52]} exd4 {[%emt 0:05:01]} 11. Nxd4 {[%emt 0:01:09]} Nxd4 {[%emt 0:00:24]} 12. cxd4 {[%emt 0:00:29]} dxe4 {[%emt 0:01:06]} 13. Nxe4 {[%emt 0:00:21]} Nxe4 {[%emt 0:02:40]} 14. Re1 {[%emt 0:00:07]} d5 {[%emt 0:00:22]} 15. f3 {[%emt 0:00:46]} Qf6 {[%emt 0:01:12]} 16. fxe4 Qxd4+ {[%emt 0:00:19]} 17. Kh1 {[%emt 0:01:19]} dxe4 {[%emt 0:01:39]} 18. Rxe4 {[%emt 0:04:21]} Qxb2 {[%emt 0:01:25]} 19. Rh4 {[%emt 0:09:13]} g6 {[%emt 0:00:37]} 20. Rb1 {[%emt 0:00:52]} Qf6 {[%emt 0:05:11]} 21. Qa4 {[%emt 0:03:31]} Bd7 {[%emt 0:03:36]} 22. Qb4 {[%emt 0:04:02]} Bc6 {[%emt 0:01:42]} 23. Rf1 {[%emt 0:01:03]} Qe5 {[%emt 0:00:58]} 24. Rhf4 {[%emt 0:07:47]} Rae8 {[%emt 0:02:34]} 25. Bc4 {[%emt 0:02:35]} Re7 {[%emt 0:02:26]} 26. Qb3 {[%emt 0:01:40]} Kg7 {[%emt 0:01:19]} 27. Qg3 {[%emt 0:24:50]} f5 {[%emt 0:03:39]} 28. Bd3 {[%emt 0:02:14]} Qe3 {[%emt 0:02:03] normal} 29. Qh4 {[%emt 0:09:30]} Rd7 {[%emt 0:00:12]} 0-1

[Event "DVM U20 2019"]
[Site "Braunschweig"]
[Date "2019.12.29"]
[Round "5"]
[White "Simrock, Manuel"]
[Black "Meier, Julian"]
[Result "0-1"]
[ECO "B19"]
[WhiteElo "1211"]
[BlackElo "1323"]
[Annotator "NA"]
[PlyCount "87"]
[EventDate "2019.12.27"]
[EventType "team-tourn"]
[EventRounds "7"]
[EventCountry "GER"]
[SourceTitle "playchess.com"]
[Source "ChessBase"]
[SourceQuality "1"]
[WhiteTeam "Sges Bensheim"]
[BlackTeam "USV TU Dresden"]
[TimeControl "40/5400+30:1800+30"]

1. e4 {[%emt 0:00:00]} c6 {[%emt 0:00:00]} 2. d4 {[%emt 0:00:00]} d5 {[%emt 0:00:00]} 3. Nc3 {[%emt 0:00:00]} dxe4 {[%emt 0:00:00]} 4. Nxe4 {[%emt 0:00:00]} Bf5 {[%emt 0:00:00]} 5. Ng3 {[%emt 0:00:00]} Bg6 {[%emt 0:00:00]} 6. Nf3 {[%emt 0:00:03]} Nd7 {[%emt 0:02:28]} 7. h4 {[%emt 0:00:05]} h6 {[%emt 0:00:04]} 8. h5 {[%emt 0:00:03]} Bh7 {[%emt 0:00:24]} 9. Bd3 {[%emt 0:00:08]} Bxd3 {[%emt 0:00:05]} 10. Qxd3 {[%emt 0:00:19]} Ngf6 {[%emt 0:01:25]} 11. Be3 {[%emt 0:00:37]} Qc7 {[%emt 0:02:50]} 12. c4 {[%emt 0:02:27]} e6 {[%emt 0:06:46]} 13. O-O-O {[%emt 0:06:43]} Bd6 {[%emt 0:00:47]} 14. Ne2 {[%emt 0:05:19]} Qa5 {[%emt 0:03:52]} 15. Kb1 {[%emt 0:09:59]} c5 {[%emt 0:04:05]} 16. g4 {[%emt 0:11:25]} cxd4 {[%emt 0:00:56]} 17. Bxd4 {[%emt 0:00:48]} Be7 {[%emt 0:00:45]} 18. g5 {[%emt 0:00:12]} hxg5 {[%emt 0:01:31]} 19. Ng3 O-O-O {[%emt 0:34:32]} 20. Qe3 {[%emt 0:00:00]} Ng4 {[%emt 0:07:07]} 21. Qe4 {[%emt 0:00:00]} Ndf6 {[%emt 0:04:52]} 22. Qe2 {[%emt 0:00:00]} Bc5 {[%emt 0:02:11]} 23. Rd3 {[%emt 0:00:00]} Bxd4 {[%emt 0:02:16]} 24. Nxd4 {[%emt 0:01:21]} Qe5 {[%emt 0:03:15]} 25. Qxe5 {[%emt 0:14:38]} Nxe5 {[%emt 0:00:09]} 26. Rd2 {[%emt 0:00:51]} Nc6 {[%emt 0:06:06]} 27. Rhd1 {[%emt 0:00:30]} Nxd4 {[%emt 0:00:34]} 28. Rxd4 {[%emt 0:00:04]} Rxd4 {[%emt 0:00:30]} 29. Rxd4 {[%emt 0:00:04]} Nxh5 {[%emt 0:00:09]} 30. Ne4 {[%emt 0:00:05]} Rd8 {[%emt 0:06:28]} 31. Rxd8+ {[%emt 0:01:56]} Kxd8 {[%emt 0:00:05]} 32. Nxg5 {[%emt 0:00:05]} Ke7 {[%emt 0:00:03]} 33. Kc2 {[%emt 0:00:06]} Kf6 {[%emt 0:01:59]} 34. Nf3 {[%emt 0:00:44]} a6 {[%emt 0:00:42]} 35. c5 {[%emt 0:00:23]} g5 {[%emt 0:01:27]} 36. Kd3 {[%emt 0:00:15]} g4 {[%emt 0:01:10]} 37. Nd4 {[%emt 0:00:26]} Ke5 {[%emt 0:01:45]} 38. b4 {[%emt 0:00:34]} Nf4+ {[%emt 0:00:22]} 39. Kc4 {[%emt 0:00:49]} Nh3 {[%emt 0:00:39]} 40. a4 {[%emt 0:00:31]} Nxf2 {[%emt 0:00:49]} 41. b5 {[%emt 0:30:08]} axb5+ {[%emt 0:08:01]} 42. axb5 {[%emt 0:00:00]} Ne4 {[%emt 0:00:27]} 43. Nc6+ {[%emt 0:00:00]} Kf4 {[%emt 0:01:37]} 44. Nd4 {normal} 0-1

[Event "DVM U20 2019"]
[Site "Braunschweig"]
[Date "2019.12.29"]
[Round "6"]
[White "Engel, Luis"]
[Black "Kueppers, Timo"]
[Result "1-0"]
[ECO "C07"]
[WhiteElo "2531"]
[BlackElo "2296"]
[Annotator "ChessBase"]
[PlyCount "93"]
[EventDate "2019.12.27"]
[EventType "team-tourn"]
[EventRounds "7"]
[EventCountry "GER"]
[SourceTitle "playchess.com"]
[Source "ChessBase"]
[SourceQuality "1"]
[WhiteTeam "Hamburger SK"]
[BlackTeam "SF Essen-Katernberg"]
[TimeControl "40/5400+30:1800+30"]

1. e4 {[%emt 0:00:00]} e6 {[%emt 0:00:00]} 2. d4 {[%emt 0:00:00]} d5 {[%emt 0:00:00]} 3. Nd2 {[%emt 0:00:00]} c5 {[%emt 0:00:00]} 4. exd5 {[%emt 0:00:00]} Qxd5 {[%emt 0:00:02]} 5. Ngf3 {[%emt 0:00:00]} cxd4 {[%emt 0:00:07]} 6. Bc4 {[%emt 0:00:00]} Qd6 {[%emt 0:00:04]} 7. O-O {[%emt 0:00:08]} Nf6 {[%emt 0:00:05]} 8. Nb3 {[%emt 0:00:09]} Nc6 {[%emt 0:00:13]} 9. Nbxd4 {[%emt 0:00:09]} Nxd4 {[%emt 0:00:07]} 10. Nxd4 {[%emt 0:00:09]} a6 {[%emt 0:00:04]} 11. Re1 {[%emt 0:00:44]} Qc7 {[%emt 0:00:07]} 12. Bf1 {[%emt 0:00:37]} Bc5 {[%emt 0:08:45]} 13. Nb3 {[%emt 0:05:26]} Bd6 {[%emt 0:01:32]} 14. g3 {[%emt 0:03:11]} O-O {[%emt 0:07:11]} 15. Bg5 {[%emt 0:02:10]} Be5 {[%emt 0:01:46]} 16. c3 {[%emt 0:03:32]} h6 {[%emt 0:04:50]} 17. Be3 {[%emt 0:01:32]} Nd5 {[%emt 0:01:06]} 18. Bc5 {[%emt 0:02:19]} Re8 {[%emt 0:04:07]} 19. Qh5 {[%emt 0:04:28]} Bf6 {[%emt 0:08:13]} 20. Bg2 {[%emt 0:04:25]} Bd7 {[%emt 0:12:26]} 21. Bxd5 {[%emt 0:03:56]} exd5 {[%emt 0:00:14]} 22. Bd4 {[%emt 0:00:59]} Qd6 {[%emt 0:03:26]} 23. Bxf6 {[%emt 0:05:16]} Qxf6 {[%emt 0:00:09]} 24. Qxd5 {[%emt 0:07:20]} Bc6 {[%emt 0:00:55]} 25. Qd3 {[%emt 0:00:08]} Red8 {[%emt 0:10:28]} 26. Nd4 {[%emt 0:00:30]} Rd5 {[%emt 0:05:13]} 27. Re3 {[%emt 0:04:02]} Rad8 {[%emt 0:01:05]} 28. Rae1 {[%emt 0:00:55]} g6 {[%emt 0:04:16]} 29. Qe2 {[%emt 0:02:30]} h5 {[%emt 0:03:25]} 30. h4 {[%emt 0:06:39]} Bd7 {[%emt 0:04:11]} 31. Re5 {[%emt 0:03:22]} Bc6 {[%emt 0:02:32]} 32. f4 {[%emt 0:04:00]} Qd6 {[%emt 0:01:38]} 33. f5 {[%emt 0:04:48]} Rxe5 {[%emt 0:10:55]} 34. Qxe5 {[%emt 0:00:07]} Qd5 {[%emt 0:03:24]} 35. Qxd5 {[%emt 0:00:44]} Bxd5 {[%emt 0:00:13]} 36. b3 {[%emt 0:01:44]} Kg7 {[%emt 0:01:05]} 37. fxg6 {[%emt 0:01:47]} fxg6 {[%emt 0:00:09]} 38. Re7+ {[%emt 0:02:25]} Kf6 {[%emt 0:00:18]} 39. Rc7 {[%emt 0:00:24]} Ke5 {[%emt 0:03:45]} 40. Kf2 {[%emt 0:01:04]} Rf8+ {[%emt 0:00:33]} 41. Ke2 {[%emt 0:31:11]} Re8 {[%emt 0:11:37]} 42. Rd7 {[%emt 0:00:00]} Be4 {[%emt 0:01:24]} 43. Ke3 {[%emt 0:00:00] normal} Bh1 {[%emt 0:04:54] normal} 44. c4 {[%emt 0:00:00] normal} Kf6+ {[%emt 0:01:00]} 45. Kf2 {[%emt 0:00:00] normal} g5 {[%emt 0:00:39]} 46. hxg5+ {[%emt 0:00:00]} Kxg5 {[%emt 0:00:06] normal} 47. Rd6 {[%emt 0:00:00] normal} 1-0

[Event "DVM U20 2019"]
[Site "Braunschweig"]
[Date "2019.12.29"]
[Round "6"]
[White "Goldbeck, Lars"]
[Black "Hoffmann, Jens"]
[Result "1/2-1/2"]
[ECO "A38"]
[WhiteElo "2312"]
[BlackElo "2113"]
[Annotator "NA"]
[PlyCount "133"]
[EventDate "2019.12.27"]
[EventType "team-tourn"]
[EventRounds "7"]
[EventCountry "GER"]
[SourceTitle "playchess.com"]
[Source "ChessBase"]
[SourceQuality "1"]
[WhiteTeam "SC Bavaria Regensburg"]
[BlackTeam "SF HN-Biberach"]
[TimeControl "40/5400+30:1800+30"]

1. Nf3 {[%emt 0:00:00]} Nf6 {[%emt 0:00:00]} 2. c4 {[%emt 0:00:16]} g6 {[%emt 0:03:12]} 3. Nc3 {[%emt 0:00:04]} c5 {[%emt 0:00:11]} 4. g3 {[%emt 0:00:37]} Bg7 {[%emt 0:00:10]} 5. Bg2 {[%emt 0:00:05]} Nc6 {[%emt 0:01:42]} 6. d3 {[%emt 0:00:21]} O-O {[%emt 0:01:14]} 7. Bd2 {[%emt 0:00:06]} d6 {[%emt 0:01:56]} 8. Qc1 {[%emt 0:02:47]} h5 {[%emt 0:09:58]} 9. h3 {[%emt 0:02:33]} Rb8 {[%emt 0:01:29]} 10. O-O {[%emt 0:05:21]} a6 {[%emt 0:00:35]} 11. Ng5 {[%emt 0:03:10]} Bd7 {[%emt 0:02:24]} 12. a4 {[%emt 0:02:41]} Nd4 {[%emt 0:06:45]} 13. Qd1 {[%emt 0:03:06]} Bc6 {[%emt 0:17:30]} 14. Nd5 {[%emt 0:06:30]} b5 {[%emt 0:17:37]} 15. e3 {[%emt 0:00:38]} bxc4 {[%emt 0:01:04]} 16. Ba5 Qxa5 {[%emt 0:17:03]} 17. Nxe7+ {[%emt 0:13:13]} Kh8 {[%emt 0:00:08]} 18. Nxc6 {[%emt 0:22:51]} Nxc6 {[%emt 0:00:06]} 19. Bxc6 {[%emt 0:00:04]} Qc7 {[%emt 0:09:51]} 20. Bg2 {[%emt 0:00:17]} cxd3 {[%emt 0:00:17]} 21. Qxd3 {[%emt 0:00:24]} Rxb2 {[%emt 0:03:14]} 22. Qxa6 {[%emt 0:01:09]} Nh7 {[%emt 0:01:32]} 23. Nxh7 {[%emt 0:01:09]} Kxh7 {[%emt 0:00:01]} 24. Rad1 {[%emt 0:00:41]} Rb6 {[%emt 0:00:47]} 25. Qd3 {[%emt 0:02:07]} c4 {[%emt 0:00:23]} 26. Qd5 {[%emt 0:00:12]} c3 {[%emt 0:00:59]} 27. Be4 {[%emt 0:01:11]} Qc5 {[%emt 0:00:14]} 28. a5 {[%emt 0:03:47]} Ra6 {[%emt 0:00:02]} 29. Qxc5 {[%emt 0:00:48]} dxc5 {[%emt 0:00:02]} 30. Ra1 {[%emt 0:00:44]} Rd8 {[%emt 0:00:42]} 31. Kg2 {[%emt 0:02:25]} Rd7 {[%emt 0:01:01]} 32. Ra4 {[%emt 0:01:24]} Rda7 {[%emt 0:00:54]} 33. Rfa1 {[%emt 0:00:47]} c2 {[%emt 0:00:36]} 34. Rc1 {[%emt 0:00:01]} Bc3 {[%emt 0:01:01]} 35. Rxc2 {[%emt 0:00:14]} Bb4 {[%emt 0:00:08]} 36. Bd5 {[%emt 0:01:15]} Kg7 {[%emt 0:00:15]} 37. Rc4 {[%emt 0:00:37]} Rxa5 38. Rxa5 {[%emt 0:00:01]} Rxa5 {[%emt 0:00:52]} 39. Rf4 {[%emt 0:00:20]} Ra7 {[%emt 0:00:57]} 40. Re4 {[%emt 0:01:07]} Rd7 {[%emt 0:00:38]} 41. Bc4 {[%emt 0:30:12]} Ra7 {[%emt 0:02:31]} 42. Re8 {[%emt 0:00:00]} Rd7 {[%emt 0:06:26]} 43. Rc8 {[%emt 0:00:00]} Be1 {[%emt 0:01:54]} 44. Kf1 {[%emt 0:00:00]} Bb4 {[%emt 0:00:03]} 45. e4 {[%emt 0:00:00]} Re7 {[%emt 0:02:48]} 46. Bd5 {[%emt 0:00:00]} Ra7 {[%emt 0:00:24]} 47. Ke2 {[%emt 0:00:00]} Re7 {[%emt 0:00:30]} 48. Kf3 {[%emt 0:00:00]} Ra7 {[%emt 0:00:23]} 49. Kg2 {[%emt 0:00:00]} Rd7 {[%emt 0:00:56]} 50. Rc6 {[%emt 0:00:00]} Re7 {[%emt 0:01:16]} 51. f4 {[%emt 0:00:00]} Rd7 {[%emt 0:00:03]} 52. Kf3 {[%emt 0:00:00]} Ra7 {[%emt 0:12:59]} 53. Kg2 {[%emt 0:00:00]} Rd7 {[%emt 0:00:17]} 54. Ra6 {[%emt 0:00:00]} Bc3 {[%emt 0:00:24]} 55. Kf3 {[%emt 0:00:00]} Bd4 {[%emt 0:02:16]} 56. h4 {[%emt 0:00:00]} Rc7 {[%emt 0:03:01]} 57. Ra4 {[%emt 0:00:00]} Rd7 {[%emt 0:00:15]} 58. Ra2 {[%emt 0:00:00]} f5 {[%emt 0:02:05]} 59. Ra6 {[%emt 0:00:00]} fxe4+ {[%emt 0:01:35]} 60. Bxe4 {[%emt 0:00:00]} Bf6 {[%emt 0:00:08]} 61. Rc6 {[%emt 0:00:00]} Ra7 {[%emt 0:00:25]} 62. Rxc5 {[%emt 0:00:00]} Ra3+ {[%emt 0:00:01]} 63. Kg2 {[%emt 0:00:00]} Ra2+ {[%emt 0:00:06]} 64. Kh3 {[%emt 0:00:00]} Re2 {[%emt 0:01:35]} 65. Bc2 {[%emt 0:00:00]} Re3 {[%emt 0:00:53]} 66. Rc7+ {[%emt 0:00:00]} Re7 {[%emt 0:00:16]} 67. Rc6 {[%emt 0:00:00] normal} 1/2-1/2

[Event "DVM U20 2019"]
[Site "Braunschweig"]
[Date "2019.12.29"]
[Round "6"]
[White "Poghosyan, Tigran"]
[Black "Meiwes, Thore"]
[Result "1-0"]
[ECO "B30"]
[WhiteElo "2302"]
[BlackElo "2106"]
[Annotator "NA RC"]
[PlyCount "43"]
[EventDate "2019.12.27"]
[EventType "team-tourn"]
[EventRounds "7"]
[EventCountry "GER"]
[SourceTitle "playchess.com"]
[Source "ChessBase"]
[SourceQuality "1"]
[WhiteTeam "Lübecker SV"]
[BlackTeam "SK Lehrte 1919"]
[TimeControl "40/5400+30:1800+30"]

1. e4 {[%emt 0:00:00]} c5 {[%emt 0:00:00]} 2. Nf3 {[%emt 0:00:00]} Nc6 {[%emt 0:00:00]} 3. b3 {[%emt 0:02:19]} d6 {[%emt 0:00:10]} 4. Bb2 {[%emt 0:00:20]} e5 {[%emt 0:00:06]} 5. Be2 {[%emt 0:01:33]} Nf6 {[%emt 0:00:15]} 6. d3 {[%emt 0:00:21]} Be7 {[%emt 0:00:11]} 7. O-O {[%emt 0:00:05]} O-O {[%emt 0:00:03]} 8. Nbd2 {[%emt 0:00:23]} b6 {[%emt 0:04:40]} 9. Nc4 {[%emt 0:01:24]} Re8 {[%emt 0:04:32]} 10. Ne3 {[%emt 0:01:13]} Bf8 {[%emt 0:03:47]} 11. c4 {[%emt 0:03:11]} g6 {[%emt 0:02:41]} 12. Nd5 {[%emt 0:00:28]} Bg7 {[%emt 0:01:25]} 13. Nd2 {[%emt 0:00:40]} Nxd5 {[%emt 0:05:15]} 14. cxd5 {[%emt 0:01:27]} Ne7 {[%emt 0:02:34]} 15. a4 {[%emt 0:03:01]} f5 {[%emt 0:00:46]} 16. f4 {[%emt 0:00:38]} exf4 {[%emt 0:05:36]} 17. Bxg7 {[%emt 0:04:50]} Kxg7 {[%emt 0:00:03]} 18. Rxf4 {[%emt 0:00:34]} fxe4 {[%emt 0:04:39]} 19. dxe4 {[%emt 0:00:11]} Ng8 {[%emt 0:02:22]} 20. Qc2 {[%emt 0:01:47]} Qg5 {[%emt 0:06:23]} 21. Raf1 {[%emt 0:02:08] normal} Re7 {[%emt 0:06:55] normal} 22. Nc4 {[%emt 0:01:13] normal} 1-0